fUST/lending_fUST_20250722
["ID","MTS","AMOUNT","RATE_DAILY","PERIOD"]
[373915932,1753151436266,-460.0,0.00017366,2]
[373915933,1753151436275,-460.0,0.00017366,2]
[373915934,1753151436284,-460.0,0.00017366,2]
[373915935,1753151436293,-460.0,0.00017366,2]
[373915936,1753151436303,-588.43,0.00017366,2]
[373915937,1753151436312,-430.52836705,0.00017366,2]
[373915938,1753151436322,-542.31473024,0.00017366,2]
[373915939,1753151436331,-462.20726296,0.00017366,2]
[373915940,1753151436341,-596.15,0.00017366,2]
[373915941,1753151436350,-460.0,0.00017366,2]
[373915942,1753151436359,-460.0,0.00017366,2]
[373915943,1753151436369,-460.0,0.00017366,2]
[373915944,1753151436378,-364.87612856,0.00017366,2]
[373915945,1753151436402,-591.0,0.00017366,2]
[373915946,1753151436414,-76.53387144,0.00017366,2]
[373915947,1753151436423,-460.0,0.00017366,2]
[373915948,1753151436433,-966.43,0.00017366,2]
[373915949,1753151436442,-466.83411807,0.00017366,2]
[373915950,1753151436451,-460.0,0.00017366,2]
[373915951,1753151436461,-468.38808057,0.00017366,2]
[373915952,1753151436470,-584.04691873,0.00017366,2]
[373915953,1753151436479,-500.0,0.00017366,2]
[373915954,1753151436489,-500.0,0.00017366,2]
[373915955,1753151436499,-500.0,0.00017366,2]
[373915956,1753151436508,-466.02704958,0.00017366,2]
[373915957,1753151436517,-460.0,0.00017366,2]
[373915958,1753151436526,-460.0,0.00017366,2]
[373915959,1753151436535,-460.0,0.00017366,2]
[373915960,1753151436545,-464.71905104,0.00017366,2]
[373915961,1753151436554,-460.0,0.00017366,2]
[373915962,1753151436563,-306.34571011,0.00017366,2]
[373915963,1753151436575,-153.65428989,0.00017366,2]
[373915964,1753151436584,-285.91071011,0.00017366,2]
[373915965,1753151436596,-601.26928989,0.00017366,2]
[373915966,1753151436605,-467.08250855,0.00017366,2]
[373915967,1753151436614,-203.30883211,0.00017366,2]
[373915968,1753151436623,-737.95,0.00017366,2]
[373915969,1753151436636,-468.31810975,0.00017366,2]
[373915970,1753151436645,-468.35645803,0.00017366,2]
[373915971,1753151436654,-460.0,0.00017366,2]
[373915972,1753151436663,-464.05663652,0.00017366,2]
[373915973,1753151436673,-460.0,0.00017366,2]
[373915974,1753151436683,-462.36074759,0.00017366,2]
[373915975,1753151436693,-463.46504356,0.00017366,2]
[373915976,1753151436704,-462.20566043,0.00017366,2]
[373915977,1753151436713,-460.0,0.00017366,2]
[373915978,1753151436722,-460.0,0.00017366,2]
[373915979,1753151436732,-462.15761759,0.00017366,2]
[373915980,1753151436741,-470.17396294,0.00017366,2]
[373915981,1753151436750,-1025.65,0.00017366,2]
[373915982,1753151436759,-461.95229387,0.00017366,2]
[373915983,1753151436768,-466.2783485,0.00017366,2]
[373915984,1753151436777,-986.72,0.00017366,2]
[373915985,1753151436787,-468.01085754,0.00017366,2]
[373915986,1753151436796,-461.95392743,0.00017366,2]
[373915987,1753151436805,-462.9820497,0.00017366,2]
[373915988,1753151436815,-505.84017674,0.00017366,2]
[373915989,1753151436825,-463.20974944,0.00017366,2]
[373915990,1753151436834,-462.06930446,0.00017366,2]
[373915991,1753151436843,-653.38,0.00017366,2]
[373915992,1753151436853,-460.0,0.00017367,2]
[373915993,1753151436862,-460.0,0.00017367,2]
[373915994,1753151436871,-460.0,0.00017367,2]
[373915995,1753151436884,-463.03804118,0.00017367,2]
[373915996,1753151436893,-470.30351422,0.00017367,2]
[373915997,1753151436902,-460.0,0.00017367,2]
[373915998,1753151436911,-460.0,0.00017367,2]
[373915999,1753151436921,-460.0,0.00017367,2]
[373916000,1753151436930,-460.0,0.00017367,2]
[373916001,1753151436939,-460.0,0.00017367,2]
[373916002,1753151436948,-460.0,0.00017367,2]
[373916003,1753151436957,-460.0,0.00017367,2]
[373916004,1753151436967,-460.0,0.00017367,2]
[373916005,1753151436977,-44.75487121,0.00017367,2]
[373916052,1753151438239,-460.0,0.00017359,2]
[373916054,1753151438249,-2995.28,0.00017365,2]
[373916056,1753151438258,-465.05169959,0.00017366,2]
[373916058,1753151438268,-1106.11512879,0.00017367,2]
[373916060,1753151438277,-461.70118049,0.00017367,2]
[373916062,1753151438286,-997.04,0.00017367,2]
[373916063,1753151438295,-502.2337126,0.00017367,2]
[373916064,1753151438305,-569.21,0.00017367,2]
[373916065,1753151438314,-460.0,0.00017367,2]
[373916067,1753151438324,-460.0,0.00017367,2]
[373916070,1753151438333,-460.0,0.00017367,2]
[373916072,1753151438343,-385.70245957,0.00017367,2]
[373916074,1753151438353,-461.87225794,0.00017367,2]
[373916076,1753151438362,-460.0,0.00017367,2]
[373916077,1753151438371,-460.0,0.00017367,2]
[373916079,1753151438380,-1170.69,0.00017367,2]
[373916082,1753151438389,-460.0,0.00017367,2]
[373916084,1753151438399,-460.0,0.00017367,2]
[373916086,1753151438408,-460.0,0.00017367,2]
[373916088,1753151438417,-460.0,0.00017367,2]
[373916090,1753151438426,-460.0,0.00017367,2]
[373916092,1753151438435,-460.0,0.00017367,2]
[373916094,1753151438445,-460.0,0.00017367,2]
[373916095,1753151438454,-628.26,0.00017367,2]
[373916097,1753151438464,-500.0,0.00017367,2]
[373916099,1753151438473,-500.0,0.00017367,2]
[373916100,1753151438482,-500.0,0.00017367,2]
[373916101,1753151438492,-460.0,0.00017367,2]
[373916103,1753151438501,-463.40930684,0.00017367,2]
[373916105,1753151438511,-463.45154953,0.00017367,2]
[373916106,1753151438520,-460.0,0.00017367,2]
[373916107,1753151438530,-464.64933765,0.00017367,2]
[373916108,1753151438540,-166.65615789,0.00017367,2]
[373916109,1753151438552,-297.89582777,0.00017367,2]
[373916110,1753151438561,-460.0,0.00017367,2]
[373916111,1753151438570,-460.0,0.00017367,2]
[373916112,1753151438579,-460.0,0.00017367,2]
[373916113,1753151438589,-1340.45,0.00017367,2]
[373916114,1753151438598,-464.17950056,0.00017367,2]
[373916115,1753151438607,-465.23307788,0.00017367,2]
[373916116,1753151438617,-460.0,0.00017367,2]
[373916117,1753151438627,-460.0,0.00017367,2]
[373916118,1753151438636,-347.29955319,0.00017367,2]
[373916119,1753151438809,-117.77178945,0.00017367,2]
[373916120,1753151438819,-462.38268434,0.00017367,2]
[373916121,1753151438828,-460.0,0.00017367,2]
[373916122,1753151438837,-1482.71,0.00017367,2]
[373916123,1753151438847,-464.82418393,0.00017367,2]
[373916124,1753151438856,-207.06393425,0.00017367,2]
[373916125,1753151438878,-260.06606575,0.00017367,2]
[373916126,1753151438887,-464.81757034,0.00017367,2]
[373916127,1753151438896,-466.95706283,0.00017367,2]
[373916128,1753151438905,-460.0,0.00017367,2]
[373916129,1753151438914,-466.47538833,0.00017367,2]
[373916130,1753151438923,-465.97070521,0.00017367,2]
[373916131,1753151438932,-460.0,0.00017367,2]
[373916132,1753151438943,-439.47841932,0.00017367,2]
[373916133,1753151438952,-460.0,0.00017367,2]
[373916134,1753151438961,-460.0,0.00017367,2]
[373916135,1753151438970,-463.38484543,0.00017367,2]
[373916136,1753151438979,-460.0,0.00017367,2]
[373916137,1753151438988,-460.0,0.00017367,2]
[373916138,1753151438997,-460.0,0.00017367,2]
[373916139,1753151439007,-460.0,0.00017367,2]
[373916140,1753151439016,-460.0,0.00017367,2]
[373916141,1753151439026,-460.0,0.00017367,2]
[373916142,1753151439035,-464.50817539,0.00017367,2]
[373916143,1753151439045,-462.6032688,0.00017367,2]
[373916144,1753151439054,-461.48750089,0.00017367,2]
[373916145,1753151439075,-460.0,0.00017367,2]
[373916146,1753151439088,-464.92574397,0.00017367,2]
[373916147,1753151439097,-461.20755138,0.00017367,2]
[373916148,1753151439107,-500.0,0.00017368,2]
[373916149,1753151439117,-500.0,0.00017368,2]
[373916150,1753151439128,-500.0,0.00017368,2]
[373916151,1753151439138,-460.0,0.00017369,2]
[373916152,1753151439147,-299.75407575,0.00017369,2]
[373916153,1753151439158,-460.0,0.00017369,2]
[373916154,1753151439168,-191.59088372,0.00017369,2]
[373916155,1753151439178,-460.0,0.00017369,2]
[373916156,1753151439187,-461.26442091,0.00017369,2]
[373916157,1753151439198,-460.0,0.00017369,2]
[373916158,1753151439207,-460.0,0.00017369,2]
[373916159,1753151439217,-496.55928395,0.00017369,2]
[373916160,1753151439227,-460.0,0.00017369,2]
[373916161,1753151439237,-460.0,0.00017369,2]
[373916162,1753151439248,-500.0,0.00017369,2]
[373916163,1753151439257,-500.0,0.00017369,2]
[373916164,1753151439267,-500.0,0.00017369,2]
[373916165,1753151439276,-500.0,0.00017369,2]
[373916166,1753151439286,-500.0,0.00017369,2]
[373916167,1753151439296,-500.0,0.00017369,2]
[373916168,1753151439305,-500.0,0.00017369,2]
[373916169,1753151439315,-500.0,0.00017369,2]
[373916170,1753151439325,-500.0,0.00017369,2]
[373916171,1753151439334,-500.0,0.00017369,2]
[373916172,1753151439344,-460.0,0.00017369,2]
[373916173,1753151439354,-460.0,0.00017369,2]
[373916174,1753151439363,-460.0,0.00017369,2]
[373916175,1753151439373,-460.0,0.00017369,2]
[373916176,1753151439384,-576.60641616,0.00017369,2]
[373916177,1753151439393,-462.09379389,0.00017369,2]
[373916178,1753151439403,-460.0,0.00017369,2]
[373916179,1753151439413,-460.0,0.00017369,2]
[373916180,1753151439422,-1138.44,0.00017369,2]
[373916181,1753151439432,-460.0,0.00017369,2]
[373916182,1753151439442,-1173.97,0.00017369,2]
[373916183,1753151439451,-2234.38,0.00017369,2]
[373916184,1753151439461,-462.87865206,0.00017369,2]
[373916185,1753151439471,-1212.79,0.00017369,2]
[373916186,1753151439481,-655.27,0.00017369,2]
[373916187,1753151439491,-460.0,0.0001737,2]
[373916188,1753151439502,-461.84016934,0.0001737,2]
[373916189,1753151439513,-460.0,0.0001737,2]
[373916190,1753151439523,-558.63961957,0.0001737,2]
[373916191,1753151439534,-461.46206797,0.0001737,2]
[373916192,1753151439544,-461.36614137,0.0001737,2]
[373916193,1753151439554,-460.85978802,0.0001737,2]
[373916194,1753151439565,-460.0,0.0001737,2]
[373916195,1753151439575,-461.33692647,0.0001737,2]
[373916196,1753151439584,-460.0,0.0001737,2]
[373916197,1753151439594,-458.61206655,0.0001737,2]
[373916198,1753151439603,-460.6442467,0.0001737,2]
[373916199,1753151439613,-463.36080461,0.0001737,2]
[373916200,1753151439622,-460.0,0.0001737,2]
[373916201,1753151439633,-460.0,0.0001737,2]
[373916202,1753151439642,-277.71442826,0.0001737,2]
[373916203,1753151439651,-463.37262324,0.0001737,2]
[373916204,1753151439661,-467.57859045,0.0001737,2]
[373916205,1753151439670,-463.0116488,0.0001737,2]
[373916206,1753151439680,-460.0,0.0001737,2]
[373916208,1753151439690,-463.42188554,0.0001737,2]
[373916209,1753151439699,-460.0,0.0001737,2]
[373916210,1753151439713,-460.0,0.0001737,2]
[373916211,1753151439722,-460.0,0.0001737,2]
[373916212,1753151439732,-511.0315289,0.0001737,2]
[373916213,1753151439741,-460.0,0.0001737,2]
[373916214,1753151439752,-597.13,0.0001737,2]
[373916215,1753151439762,-462.30774263,0.0001737,2]
[373916216,1753151439772,-462.2655187,0.0001737,2]
[373916217,1753151439782,-495.44153687,0.0001737,2]
[373916218,1753151439791,-108.97023383,0.0001737,2]
[373916219,1753151439805,-352.56131147,0.0001737,2]
[373916220,1753151439815,-398.85120331,0.0001737,2]
[373916221,1753151439824,-460.0,0.0001737,2]
[373916222,1753151439834,-460.99775988,0.0001737,2]
[373916223,1753151439843,-461.22913086,0.0001737,2]
[373916224,1753151439854,-460.0,0.0001737,2]
[373916225,1753151439864,-460.0,0.0001737,2]
[373916226,1753151439873,-461.43842289,0.0001737,2]
[373916227,1753151439884,-460.0,0.0001737,2]
[373916228,1753151439894,-655.65,0.0001737,2]
[373916229,1753151439903,-242.40872938,0.0001737,2]
[373916230,1753151439913,-460.0,0.0001737,2]
[373916231,1753151439924,-460.0,0.0001737,2]
[373916232,1753151439933,-460.0,0.0001737,2]
[373916233,1753151439942,-460.0,0.0001737,2]
[373916234,1753151439952,-460.0,0.0001737,2]
[373916235,1753151439961,-460.0,0.0001737,2]
[373916236,1753151439970,-460.0,0.0001737,2]
[373916237,1753151439981,-183.35278404,0.0001737,2]
[373916238,1753151439990,-461.91506024,0.0001737,2]
[373916240,1753151440000,-460.0,0.0001737,2]
[373916242,1753151440010,-286.61443479,0.0001737,2]
[373916243,1753151440020,-461.59693039,0.0001737,2]
[373916245,1753151440031,-463.9796615,0.0001737,2]
[373916249,1753151440042,-500.0,0.0001737,2]
[373916251,1753151440053,-500.0,0.0001737,2]
[373916253,1753151440064,-500.0,0.0001737,2]
[373916255,1753151440075,-500.0,0.0001737,2]
[373916257,1753151440089,-500.0,0.0001737,2]
[373916259,1753151440099,-324.13789781,0.0001737,2]
[373916261,1753151440109,-796.0,0.00017468,2]
[373916262,1753151440119,-151.0,0.00017468,2]
[373916264,1753151440132,-151.0,0.00017468,2]
[373916266,1753151440142,-495.0,0.00017468,2]
[373916267,1753151440152,-2920.42,0.0001747,2]
[373916268,1753151440163,-1794.94,0.0001747,2]
[373916269,1753151440173,-2581.43,0.0001747,2]
[373916270,1753151440182,-460.0,0.00017471,2]
[373916271,1753151440192,-500.0,0.00017471,2]
[373916272,1753151440202,-460.0,0.00017471,2]
[373916273,1753151440212,-460.0,0.00017471,2]
[373916274,1753151440222,-460.0,0.00017471,2]
[373916275,1753151440231,-460.0,0.00017471,2]
[373916276,1753151440241,-460.0,0.00017471,2]
[373916277,1753151440251,-1299.91127838,0.00017471,2]
[373916278,1753151440263,-980.78115233,0.00017471,2]
[373916279,1753151440275,-5596.23756929,0.00017471,2]
[373916280,1753151440287,-2237.47,0.00017471,2]
[373916281,1753151440298,-460.0,0.00017471,2]
[373916282,1753151440308,-2751.09,0.00017471,2]
[373916283,1753151440317,-448.27027937,0.00017471,2]
[373916284,1753151440327,-3752.14,0.00017471,2]
[373916285,1753151440339,-460.0,0.00017471,2]
[373916286,1753151440348,-907.56,0.00017471,2]
[373916287,1753151440358,-461.7462564,0.00017471,2]
[373916288,1753151440368,-460.0,0.00017472,2]
[373916289,1753151440378,-460.0,0.00017472,2]
[373916291,1753151440387,-460.0,0.00017472,2]
[373916292,1753151440397,-493.51536272,0.00017475,2]
[373916293,1753151440406,-150.0,0.00017494,2]
[373916294,1753151440416,-470.59086973,0.00017539,2]
[373916295,1753151440425,-460.0,0.00017539,2]
[373916296,1753151440435,-460.0,0.00017539,2]
[373916298,1753151440445,-640.47,0.00017539,2]
[373916301,1753151440455,-802.77,0.00017539,2]
[373916302,1753151440466,-2500.37,0.00017539,2]
[373916305,1753151440476,-471.79738491,0.00017539,2]
[373916307,1753151440486,-126.81022053,0.00017539,2]
[373916309,1753151440499,-333.18977947,0.00017539,2]
[373916311,1753151440508,-234.64941459,0.0001754,2]
[373916313,1753151440520,-225.35058541,0.0001754,2]
[373916335,1753151440704,-411.75881472,0.0001754,2]
[373916337,1753151440717,-48.24118528,0.0001754,2]
[373916339,1753151440727,-460.0,0.0001754,2]
[373916341,1753151440738,-460.0,0.0001754,2]
[373916344,1753151440747,-133.13856572,0.0001754,2]
[373916346,1753151440765,-270.13541551,0.0001754,2]
[373916352,1753151440787,-56.72601877,0.0001754,2]
[373916354,1753151440797,-243.50795396,0.0001754,2]
[373916356,1753151440809,-216.49204604,0.0001754,2]
[373916358,1753151440818,-191.01606918,0.0001754,2]
[373916360,1753151440830,-270.80178608,0.0001754,2]
[373916362,1753151440840,-460.0,0.0001754,2]
[373916364,1753151440850,-460.0,0.0001754,2]
[373916367,1753151440859,-309.7880958,0.0001754,2]
[373916393,1753151441102,-150.2119042,0.0001754,2]
[373916395,1753151441112,-460.0,0.0001754,2]
[373916397,1753151441121,-309.7880958,0.0001754,2]
[373916631,1753151443483,-215.91905943,0.00017358,2]
[373916633,1753151443494,-460.0,0.00017367,2]
[373916635,1753151443503,-150.2119042,0.0001754,2]
[373916637,1753151443513,-1731.22242284,0.0001754,2]
[373916639,1753151443526,-869.37015647,0.0001754,2]
[373919312,1753151590174,44200.36561548,0.000176,6]
[373919317,1753151893515,194.716468,0.00013699,2]
[373919319,1753152263527,24900.0,0.00016262,2]
[373919400,1753152632744,-464.19702603,0.00017032,2]
[373919402,1753152632755,-160.21321051,0.00017067,2]
[373919404,1753152632766,-1335.47261325,0.00017162,2]
[373919406,1753152632777,-300.0,0.00017254,2]
[373919409,1753152632788,-300.0,0.00017254,2]
[373919411,1753152632799,-1099.31245619,0.00017254,2]
[373919415,1753152632833,-100.68754381,0.00017254,2]
[373919417,1753152632844,-922.15248129,0.00017255,3]
[373919421,1753152632868,-18.48751871,0.00017255,3]
[373919423,1753152632879,-470.32,0.00017255,3]
[373919426,1753152632890,-235.16,0.00017255,3]
[373919428,1753152632902,-705.5,0.00017255,3]
[373919430,1753152632915,-1200.0,0.00017261,2]
[373919432,1753152632927,-465.56478976,0.00017261,2]
[373919435,1753152632939,-460.0,0.00017261,2]
[373919437,1753152632956,-242.69620834,0.00017261,2]
[373919439,1753152632979,-469.16431921,0.00017261,2]
[373919441,1753152632992,-423.9177655,0.00017261,2]
[373919443,1753152633003,-460.0,0.00017261,2]
[373919445,1753152633014,-465.85764302,0.00017261,2]
[373919447,1753152633026,-5.32050008,0.00017261,2]
[373919450,1753152633039,-433.8591904,0.00017261,2]
[373919452,1753152633052,-167.08030952,0.00017261,2]
[373919454,1753152633064,-500.9200094,0.00017261,2]
[373919817,1753152638480,-254.1199906,0.00017261,2]
[373919819,1753152638490,-1259.98566957,0.00017261,2]
[373919831,1753152638587,-1191.84433043,0.00017261,2]
[373919833,1753152638597,-460.0,0.00017261,2]
[373919835,1753152638606,-460.0,0.00017261,2]
[373919837,1753152638616,-460.0,0.00017261,2]
[373919839,1753152638626,-463.03970623,0.00017261,2]
[373919841,1753152638636,-17829.08708124,0.00017261,2]
[373919843,1753152638645,-460.0,0.00017262,2]
[373919845,1753152638655,-462.93405833,0.00017262,2]
[373919847,1753152638665,-460.0,0.00017262,2]
[373919849,1753152638674,-460.0,0.00017262,2]
[373919851,1753152638683,-453.25140088,0.00017262,2]
[373919853,1753152638693,-461.88916668,0.00017262,2]
[373919855,1753152638702,-251.33346754,0.00017262,2]
[373919857,1753152638711,-460.0,0.00017262,2]
[373919858,1753152638721,-463.12980543,0.00017262,2]
[373919859,1753152638732,-460.0,0.00017262,2]
[373919861,1753152638742,-460.0,0.00017262,2]
[373919862,1753152638751,-465.35213522,0.00017262,2]
[373919864,1753152638760,-329.07765218,0.00017262,2]
[373919866,1753152638772,-130.92234782,0.00017262,2]
[373919867,1753152638781,-571.07667884,0.00017262,2]
[373919868,1753152638791,-497.16690078,0.00017262,2]
[373919869,1753152638800,-469.14809954,0.00017262,2]
[373919870,1753152638810,-460.0,0.00017262,2]
[373919871,1753152638819,-462.05423318,0.00017262,2]
[373919872,1753152638829,-460.0,0.00017262,2]
[373919873,1753152638839,-518.83641851,0.00017262,2]
[373919874,1753152638848,-246.85015323,0.00017262,2]
[373919875,1753152638858,-461.08920333,0.00017262,2]
[373919876,1753152638867,-461.95564146,0.00017262,2]
[373919877,1753152638878,-461.61572652,0.00017262,2]
[373919878,1753152638887,-463.13647076,0.00017262,2]
[373919879,1753152638897,-460.0,0.00017262,2]
[373919880,1753152638907,-461.95293546,0.00017262,2]
[373919881,1753152638916,-466.60950097,0.00017262,2]
[373919882,1753152638925,-4416.22,0.00017262,2]
[373919883,1753152638934,-462.6489292,0.00017262,2]
[373919884,1753152638944,-1251.88,0.00017262,2]
[373919885,1753152638954,-464.49353918,0.00017262,2]
[373919886,1753152638963,-462.36365055,0.00017262,2]
[373919887,1753152638972,-463.51975512,0.00017262,2]
[373919888,1753152638984,-797.06,0.00017262,2]
[373919889,1753152638993,-465.66257263,0.00017262,2]
[373919890,1753152639003,-463.3648877,0.00017262,2]
[373919891,1753152639012,-460.0,0.00017262,2]
[373919892,1753152639022,-106.8986725,0.00017262,2]
[373919893,1753152639034,-353.1013275,0.00017262,2]
[373919894,1753152639043,-470.66558451,0.00017262,2]
[373919895,1753152639053,-471.28412654,0.00017262,2]
[373919896,1753152639062,-461.92595374,0.00017262,2]
[373919897,1753152639071,-460.0,0.00017262,2]
[373919898,1753152639080,-4135.01,0.00017262,2]
[373919899,1753152639089,-460.0,0.00017262,2]
[373919900,1753152639099,-460.0,0.00017262,2]
[373919901,1753152639108,-460.0,0.00017262,2]
[373919902,1753152639117,-592.53242923,0.00017262,2]
[373919903,1753152639126,-166.61962879,0.00017262,2]
[373919904,1753152639138,-603.22037121,0.00017262,2]
[373919905,1753152639147,-257.96838322,0.00017262,2]
[373919906,1753152639158,-4.33124125,0.00017262,2]
[373919907,1753152639167,-460.0,0.00017262,2]
[373919908,1753152639176,-394.79802626,0.00017262,2]
[373919909,1753152639188,-69.59274417,0.00017262,2]
[373919910,1753152639198,-1497.70810143,0.00017262,2]
[373919911,1753152639210,-334.51189857,0.00017262,2]
[373919912,1753152639219,-283.47220369,0.00017262,2]
[373919913,1753152639231,-182.31062161,0.00017262,2]
[373919914,1753152639241,-462.08361776,0.00017262,2]
[373919915,1753152639250,-460.0,0.00017262,2]
[373919916,1753152639259,-460.0,0.00017262,2]
[373919917,1753152639269,-998.01,0.00017262,2]
[373919918,1753152639279,-460.0,0.00017262,2]
[373919919,1753152639288,-445.94895979,0.00017262,2]
[373919920,1753152639299,-21.94674054,0.00017262,2]
[373919921,1753152639308,-460.0,0.00017262,2]
[373919922,1753152639318,-464.28646362,0.00017262,2]
[373919923,1753152639327,-460.0,0.00017262,2]
[373919924,1753152639336,-460.0,0.00017262,2]
[373919925,1753152639345,-460.0,0.00017262,2]
[373919926,1753152639354,-479.14411973,0.00017262,2]
[373919927,1753152639363,-18.85156733,0.00017262,2]
[373919928,1753152639374,-441.14843267,0.00017262,2]
[373919929,1753152639388,-941.78,0.00017262,2]
[373919930,1753152639397,-335.8184981,0.00017263,2]
[373919931,1753152639406,-460.0,0.00017263,2]
[373919932,1753152639415,-354.37189794,0.00017263,2]
[373919933,1753152639426,-460.0,0.00017263,2]
[373919934,1753152639435,-460.0,0.00017263,2]
[373919935,1753152639444,-465.23158807,0.00017263,2]
[373919936,1753152639454,-463.92311818,0.00017263,2]
[373919937,1753152639464,-460.0,0.00017263,2]
[373919938,1753152639475,-470.94460163,0.00017263,2]
[373919939,1753152639487,-460.0,0.00017263,2]
[373919940,1753152639496,-461.05198855,0.00017263,2]
[373919941,1753152639506,-460.0,0.00017263,2]
[373919942,1753152639516,-465.59525994,0.00017263,2]
[373919943,1753152639536,-460.0,0.00017263,2]
[373919944,1753152639548,-462.56380404,0.00017263,2]
[373919945,1753152639558,-460.0,0.00017263,2]
[373919946,1753152639568,-466.0640245,0.00017263,2]
[373919947,1753152639578,-603.25,0.00017263,2]
[373919948,1753152639588,-306.67171642,0.00017263,2]
[373919954,1753152640964,-153.32828358,0.00017263,2]
[373919955,1753152640974,-8146.68,0.00017263,2]
[373919956,1753152640985,-460.0,0.00017263,2]
[373919957,1753152640995,-460.0,0.00017263,2]
[373919958,1753152641004,-463.80019973,0.00017263,2]
[373919959,1753152641014,-579.99827159,0.00017263,2]
[373919960,1753152641024,-460.0,0.00017263,2]
[373919961,1753152641033,-460.0,0.00017263,2]
[373919962,1753152641043,-460.0,0.00017263,2]
[373919963,1753152641052,-460.0,0.00017263,2]
[373919964,1753152641062,-473.03628336,0.00017263,2]
[373919965,1753152641073,-460.0,0.00017263,2]
[373919966,1753152641082,-460.0,0.00017263,2]
[373919967,1753152641092,-460.0,0.00017263,2]
[373919968,1753152641102,-728.92,0.00017263,2]
[373919969,1753152641116,-460.0,0.00017263,2]
[373919970,1753152641126,-460.0,0.00017263,2]
[373919971,1753152641135,-460.0,0.00017263,2]
[373919972,1753152641145,-460.0,0.00017263,2]
[373919973,1753152641155,-465.49462261,0.00017263,2]
[373919974,1753152641165,-460.0,0.00017263,2]
[373919975,1753152641174,-460.0,0.00017263,2]
[373919976,1753152641184,-4015.76,0.00017263,2]
[373919977,1753152641196,-462.89106402,0.00017263,2]
[373919978,1753152641206,-460.0,0.00017263,2]
[373919979,1753152641216,-460.0,0.00017263,2]
[373919980,1753152641230,-464.74751647,0.00017263,2]
[373919981,1753152641239,-460.0,0.00017263,2]
[373919982,1753152641249,-460.0,0.00017263,2]
[373919983,1753152641258,-460.0,0.00017263,2]
[373919984,1753152641267,-460.0,0.00017263,2]
[373919985,1753152641277,-460.0,0.00017263,2]
[373919986,1753152641286,-595.4,0.00017263,2]
[373919987,1753152641296,-460.0,0.00017263,2]
[373919988,1753152641307,-460.0,0.00017263,2]
[373919989,1753152641316,-425.34364011,0.00017263,2]
[373919990,1753152641325,-460.0,0.00017263,2]
[373919991,1753152641335,-460.0,0.00017263,2]
[373919992,1753152641344,-460.0,0.00017263,2]
[373919993,1753152641354,-1192.84,0.00017263,2]
[373919994,1753152641363,-460.0,0.00017263,2]
[373919995,1753152641373,-652.16,0.00017263,2]
[373919996,1753152641386,-460.0,0.00017263,2]
[373919997,1753152641396,-460.0,0.00017263,2]
[373919998,1753152641408,-466.58804242,0.00017263,2]
[373919999,1753152641417,-825.87,0.00017263,2]
[373920000,1753152641428,-540.42283679,0.00017263,2]
[373920001,1753152641437,-460.0,0.00017263,2]
[373920002,1753152641447,-466.02178502,0.00017263,2]
[373920003,1753152641458,-460.0,0.00017263,2]
[373920004,1753152641468,-1085.72,0.00017263,2]
[373920005,1753152641479,-460.0,0.00017263,2]
[373920006,1753152641489,-460.0,0.00017263,2]
[373920007,1753152641499,-472.63458133,0.00017263,2]
[373920008,1753152641508,-460.0,0.00017263,2]
[373920009,1753152641518,-460.0,0.00017263,2]
[373920010,1753152641528,-460.0,0.00017263,2]
[373920011,1753152641537,-460.0,0.00017263,2]
[373920012,1753152641547,-460.0,0.00017263,2]
[373920013,1753152641556,-631.82,0.00017263,2]